bitfinex-derivatives/quotes_BNBF0:USTF0_20250128
["timestamp","ask_amount","ask_price","bid_price","bid_amount"]
[1738059892706,0.27213621,675.82,674.58,1.10527831]
[1738059892909,0.27213621,675.81,674.58,1.10527831]
[1738059893110,0.27213621,675.8,674.58,1.10527831]
[1738059893506,0.27213621,675.79,674.58,1.10527831]
[1738059893707,0.27213621,675.82,674.58,1.10527831]
[1738059893908,0.27213621,675.81,674.58,1.10527831]
[1738059894110,0.27213621,675.8,674.58,1.10527831]
[1738059894306,0.27213621,675.81,674.58,1.10527831]
[1738059894512,0.27213621,675.8,674.58,1.10527831]
[1738059894816,0.27213621,675.79,674.58,1.10527831]
[1738059895009,1.10720205,675.82,674.58,1.10527831]
[1738059897516,1.54595095,675.85,674.57,1.84218433]
[1738059904123,0.29588425,675.94,674.57,1.84218433]
[1738059904321,1.54599673,675.88,674.57,1.84218433]
[1738059904820,0.27211741,675.87,674.57,1.84218433]
[1738059905020,1.54599673,675.88,674.57,1.84218433]
[1738059905218,0.27211916,675.87,674.57,1.84218433]
[1738059907924,0.27211916,675.87,674.57,2.94746264]
[1738059910623,1.10720205,675.75,674.71,1.10527831]
[1738059910924,0.27211916,675.74,674.71,1.10527831]
[1738059913525,1.10720205,675.72,674.76,1.10527831]
[1738059913721,0.27211916,675.71,674.76,1.10527831]
[1738059914823,1.10720205,675.72,674.76,1.10527831]
[1738059915021,0.27213323,675.71,674.76,1.10527831]
[1738059917022,0.27213323,675.71,674.7,1.10527831]
[1738059917223,0.27213323,675.72,674.7,1.10527831]
[1738059917527,0.27213323,675.71,674.7,1.10527831]
[1738059917729,0.27213323,675.72,674.7,1.10527831]
[1738059918029,0.27213323,675.71,674.7,1.10527831]
[1738059918229,0.27213323,675.72,674.7,1.10527831]
[1738059918529,0.27213323,675.71,674.7,1.10527831]
[1738059918731,0.27213323,675.7,674.7,1.10527831]
[1738059919029,0.27213323,675.69,674.7,1.10527831]
[1738059919229,0.27213323,675.68,674.7,1.10527831]
[1738059919430,0.27213323,675.72,674.7,1.10527831]
[1738059919627,1.10720205,675.73,674.7,1.10527831]
[1738059919931,0.27215772,675.72,674.7,1.10527831]
[1738059920232,1.10720205,675.7,674.72,1.10527831]
[1738059920430,0.27215772,675.69,674.72,1.10527831]
[1738059921333,0.27215939,675.68,674.72,1.10527831]
[1738059921528,0.27215939,675.67,674.72,1.10527831]
[1738059921731,0.27215939,675.69,674.72,1.10527831]
[1738059921929,0.27215939,675.68,674.72,1.10527831]
[1738059922128,1.10720205,675.7,674.72,1.10527831]
[1738059922129,0.27215939,675.67,674.72,1.10527831]
[1738059922427,0.27215939,675.66,674.72,1.10527831]
[1738059922635,0.27215939,675.65,674.72,1.10527831]
[1738059922836,1.10720205,675.7,674.72,1.10527831]
[1738059923037,0.27215584,675.69,674.72,1.10527831]
[1738059923429,1.10720205,675.68,674.64,1.10527831]
[1738059923634,0.27215584,675.67,674.64,1.10527831]
[1738059926232,0.27215682,675.66,674.64,1.10527831]
[1738059926433,0.27215682,675.67,674.64,1.10527831]
[1738059926635,0.27215609,675.66,674.64,1.10527831]
[1738059926940,1.10720205,675.71,674.64,1.10527831]
[1738059927141,0.2721507,675.7,674.64,1.10527831]
[1738059929445,0.2721507,675.7,674.63,1.10527831]
[1738059929742,0.2721507,675.69,674.63,1.10527831]
[1738059929937,0.2721507,675.68,674.63,1.10527831]
[1738059930136,0.2721507,675.71,674.63,1.10527831]
[1738059930336,0.2721507,675.7,674.63,1.10527831]
[1738059930641,0.2721507,675.69,674.63,1.10527831]
[1738059930840,0.2721507,675.68,674.63,1.10527831]
[1738059931039,0.2721507,675.71,674.63,1.10527831]
[1738059931238,0.2721507,675.7,674.63,1.10527831]
[1738059931438,0.2721507,675.71,674.63,1.10527831]
[1738059931642,1.10720205,675.72,674.63,1.10527831]
[1738059931643,0.2721507,675.7,674.63,1.10527831]
[1738059931841,1.54610549,675.78,674.57,0.29648516]
[1738059931842,1.10720205,675.66,674.68,1.10527831]
[1738059932042,0.2721507,675.65,674.68,1.10527831]
[1738059935543,1.10720205,675.66,674.68,1.10527831]
[1738059935743,0.27215371,675.65,674.68,1.10527831]
[1738059937239,1.10720205,675.66,674.68,1.10527831]
[1738059937446,0.27215885,675.65,674.68,1.10527831]
[1738059937644,0.27215885,675.65,674.72,1.10527831]
[1738059937645,1.10720205,675.62,674.72,1.10527831]
[1738059937838,0.27215885,675.61,674.72,1.10527831]
[1738059939946,0.27215758,675.6,674.72,1.10527831]
[1738059940245,0.27215758,675.59,674.72,1.10527831]
[1738059940444,0.27215758,675.61,674.72,1.10527831]
[1738059940643,0.27215758,675.6,674.72,1.10527831]
[1738059940838,0.27215758,675.61,674.72,1.10527831]
[1738059941143,1.10720205,675.62,674.68,1.10527831]
[1738059941345,0.2721581,675.61,674.68,1.10527831]
[1738059943845,1.10720205,675.62,674.7,1.10527831]
[1738059944045,0.27215434,675.61,674.7,1.10527831]
[1738059944245,1.10720205,675.62,674.7,1.10527831]
[1738059947348,1.54593378,676.02,674.57,0.29648516]
[1738059947349,2.65313583,676.02,674.69,1.10527831]
[1738059947548,0.27211899,675.93,674.69,1.10527831]
[1738059948850,2.46830145,676.01,674.69,1.10527831]
[1738059949043,0.27212584,675.93,674.69,1.10527831]
[1738059949243,0.56801446,675.93,674.69,1.10527831]
[1738059949443,1.10720205,675.82,674.75,1.10527831]
[1738059949646,0.27212584,675.81,674.75,1.10527831]
[1738059951752,0.27212584,675.81,674.57,0.29648516]
[1738059951753,1.10720205,675.8,674.65,1.10527831]
[1738059951951,0.27212584,675.79,674.65,1.10527831]
[1738059952149,0.27213555,675.78,674.65,1.10527831]
[1738059952349,0.27213555,675.79,674.65,1.10527831]
[1738059952551,0.27213555,675.78,674.65,1.10527831]
[1738059952852,0.27213555,675.77,674.65,1.10527831]
[1738059953052,0.27213555,675.79,674.65,1.10527831]
[1738059953253,0.27213555,675.78,674.65,1.10527831]
[1738059953552,0.27213555,675.77,674.65,1.10527831]
[1738059953755,0.27213555,675.76,674.65,1.10527831]
[1738059954054,0.27213555,675.75,674.65,1.10527831]
[1738059954248,0.27213555,675.79,674.65,1.10527831]
[1738059954446,0.27213555,675.79,674.57,0.29648516]
[1738059954447,0.27213555,675.78,674.67,1.10527831]
[1738059954651,0.27213555,675.77,674.67,1.10527831]
[1738059954851,0.27213555,675.82,674.67,1.10527831]
[1738059955049,0.27213555,675.81,674.67,1.10527831]
[1738059955252,0.27213555,675.8,674.67,1.10527831]
[1738059955554,0.27213555,675.79,674.67,1.10527831]
[1738059955754,0.27213555,675.82,674.67,1.10527831]
[1738059955953,0.27213555,675.81,674.67,1.10527831]
[1738059956155,0.27213555,675.82,674.67,1.10527831]
[1738059956356,0.27213555,675.81,674.67,1.10527831]
[1738059956654,0.27213555,675.8,674.67,1.10527831]
[1738059956849,0.27213555,675.82,674.67,1.10527831]
[1738059957154,0.27212501,675.81,674.67,1.10527831]
[1738059957350,0.27212501,675.82,674.67,1.10527831]
[1738059957654,0.27212501,675.81,674.67,1.10527831]
[1738059957856,0.27212501,675.8,674.67,1.10527831]
[1738059958055,0.27212501,675.79,674.67,1.10527831]
[1738059958249,0.27212501,675.82,674.67,1.10527831]
[1738059958454,0.27212501,675.81,674.67,1.10527831]
[1738059958656,1.54598529,675.85,674.66,1.10527831]
[1738059958856,0.27212223,675.84,674.66,1.10527831]
[1738059960357,1.54598529,675.85,674.66,1.10527831]
[1738059960554,0.27211338,675.84,674.66,1.10527831]
[1738059961251,0.27211338,675.83,674.66,1.10527831]
[1738059961456,0.27211338,675.82,674.66,1.10527831]
[1738059961657,0.27211338,675.85,674.66,1.10527831]
[1738059961859,1.10720205,675.81,674.71,1.10527831]
[1738059962158,0.27211338,675.8,674.71,1.10527831]
[1738059964964,1.10720205,675.86,674.74,1.10527831]
[1738059967768,0.29588862,675.93,674.57,0.29648516]
[1738059974777,0.27211131,675.92,674.57,0.29648516]
[1738059977280,1.10720205,675.91,674.64,1.10527831]
[1738059977473,0.27211131,675.9,674.64,1.10527831]
[1738059978372,0.27211182,675.89,674.64,1.10527831]
[1738059978578,0.27211182,675.9,674.64,1.10527831]
[1738059978778,0.27211182,675.89,674.64,1.10527831]
[1738059978978,0.27211182,675.88,674.64,1.10527831]
[1738059979179,0.27211182,675.9,674.64,1.10527831]
[1738059979479,0.27211182,675.89,674.64,1.10527831]
[1738059979680,0.27211182,675.88,674.64,1.10527831]
[1738059979875,1.54595667,675.89,674.64,1.10527831]
[1738059980080,0.27211096,675.88,674.64,1.10527831]
[1738059980680,0.27211096,675.88,674.57,0.29648516]
[1738059980681,1.37931301,675.88,674.68,1.10527831]
[1738059980881,0.27211096,675.87,674.68,1.10527831]
[1738059981680,0.27211213,675.86,674.68,1.10527831]
[1738059981876,0.27211213,675.85,674.68,1.10527831]
[1738059982080,0.27211213,675.84,674.68,1.10527831]
[1738059982284,0.27211213,675.83,674.68,1.10527831]
[1738059982576,0.27211213,675.82,674.68,1.10527831]
[1738059982781,0.27211213,675.87,674.68,1.10527831]
[1738059982980,0.27211213,675.86,674.68,1.10527831]
[1738059983182,0.27211213,675.87,674.68,1.10527831]
[1738059983376,0.27211213,675.86,674.68,1.10527831]
[1738059983582,0.27211213,675.85,674.68,1.10527831]
[1738059983782,0.27211213,675.84,674.68,1.10527831]
[1738059983981,0.27211213,675.87,674.68,1.10527831]
[1738059984181,0.27211213,675.86,674.68,1.10527831]
[1738059984383,0.27211213,675.85,674.68,1.10527831]
[1738059984584,1.10720205,675.81,674.72,1.10527831]
[1738059984784,0.27211213,675.8,674.72,1.10527831]
[1738059984982,0.27211573,675.79,674.72,1.10527831]
[1738059985177,0.27211573,675.78,674.72,1.10527831]
[1738059985385,0.27211573,675.77,674.72,1.10527831]
[1738059985581,0.27211573,675.8,674.72,1.10527831]
[1738059985784,0.27211573,675.79,674.72,1.10527831]
[1738059985980,0.27211573,675.78,674.72,1.10527831]
[1738059986183,0.27211573,675.77,674.72,1.10527831]
[1738059986379,0.27211573,675.76,674.72,1.10527831]
[1738059986583,0.27211573,675.75,674.72,1.10527831]
[1738059986782,0.27211573,675.74,674.72,1.10527831]
[1738059986984,0.27211573,675.8,674.72,1.10527831]
[1738059987184,0.27211573,675.79,674.72,1.10527831]
[1738059987384,0.27211573,675.8,674.72,1.10527831]
[1738059988487,0.27211573,675.8,674.57,0.29648516]
[1738059988488,1.10720205,675.77,674.73,1.10527831]
[1738059988686,0.27211573,675.76,674.73,1.10527831]
[1738059989287,1.10720205,675.77,674.73,1.10527831]
[1738059989487,0.27211706,675.76,674.73,1.10527831]
[1738059991784,1.10720205,675.77,674.73,1.10527831]
[1738059991987,0.27211349,675.76,674.73,1.10527831]
[1738059994391,0.27211349,675.77,674.73,1.10527831]
[1738059994594,0.27211349,675.76,674.73,1.10527831]
[1738059994794,0.27211349,675.75,674.73,1.10527831]
[1738059995094,0.27211349,675.74,674.73,1.10527831]
[1738059995293,0.27211349,675.73,674.73,1.10527831]
[1738059995494,0.27211349,675.77,674.73,1.10527831]
[1738059995692,0.27211349,675.76,674.73,1.10527831]
[1738059995889,0.27211349,675.75,674.73,1.10527831]
[1738059996090,0.27211349,675.77,674.73,1.10527831]
[1738059996289,0.27211349,675.76,674.73,1.10527831]
[1738059996489,0.27211349,675.75,674.73,1.10527831]
[1738059996689,0.27211349,675.77,674.73,1.10527831]
[1738059996895,1.10720205,675.74,674.8,1.10527831]
[1738059997094,0.27211349,675.73,674.8,1.10527831]
[1738059999491,1.10720205,675.71,674.83,1.10527831]
[1738060002397,1.10720205,675.82,674.83,1.10527831]
[1738060002597,0.27208891,675.81,674.83,1.10527831]
[1738060004194,1.10720205,675.82,674.83,1.10527831]
[1738060004400,0.27208996,675.81,674.83,1.10527831]
[1738060004593,1.10720205,675.82,674.83,1.10527831]
[1738060006602,1.10720205,675.84,674.81,1.10527831]
[1738060009003,1.84171367,675.93,674.73,1.10527831]
[1738060009204,0.27208606,675.92,674.73,1.10527831]
[1738060009807,1.84171367,675.93,674.73,1.10527831]
[1738060010003,0.27208669,675.92,674.73,1.10527831]
[1738060011805,0.27208669,675.92,674.7,1.10527831]
[1738060013007,1.84171367,675.93,674.7,1.10527831]
[1738060014508,0.27208223,675.92,674.7,1.10527831]
[1738060016409,1.84171367,675.93,674.7,1.10527831]
[1738060016608,0.27208667,675.92,674.7,1.10527831]
[1738060018214,1.10720205,675.91,674.76,1.10527831]
[1738060018406,0.27208667,675.9,674.76,1.10527831]
[1738060021309,1.10720205,675.89,674.79,1.10527831]
[1738060021514,0.27208075,675.88,674.79,1.10527831]
[1738060025516,0.27208075,675.88,674.65,1.54573922]
[1738060025517,1.10720205,675.87,674.85,1.10527831]
[1738060025710,0.27208075,675.86,674.85,1.10527831]
[1738060028917,1.10720205,675.85,674.85,1.10527831]
[1738060029118,0.27208075,675.84,674.89,1.10527831]
[1738060032119,1.10720205,675.83,674.91,1.10527831]
[1738060032317,0.27208075,675.82,674.91,1.10527831]
[1738060034617,0.27207714,675.81,674.91,1.10527831]
[1738060034817,0.27207714,675.8,674.91,1.10527831]
[1738060035018,1.10720205,675.83,674.91,1.10527831]
[1738060035019,0.27207714,675.79,674.91,1.10527831]
[1738060035223,0.27207714,675.78,674.91,1.10527831]
[1738060035418,1.84171367,675.93,674.66,0.7058701]
[1738060035419,1.10720205,675.77,674.95,1.10527831]
[1738060035717,0.27207714,675.76,674.95,1.10527831]
[1738060036217,1.10720205,675.77,674.95,1.10527831]
[1738060036418,0.2720772,675.76,674.95,1.10527831]
[1738060038018,1.10720205,675.77,674.95,1.10527831]
[1738060038513,1.10720205,675.77,674.94,1.10527831]
[1738060039119,0.27209977,675.76,674.94,1.10527831]
[1738060041520,1.10720205,675.77,674.94,1.10527831]
[1738060041722,0.27208051,675.76,674.94,1.10527831]
[1738060042422,0.27208051,675.76,674.9,1.10527831]
[1738060042617,0.27208051,675.79,674.9,1.10527831]
[1738060042822,0.27208051,675.78,674.9,1.10527831]
[1738060043119,0.27208051,675.77,674.9,1.10527831]
[1738060043321,0.27208051,675.79,674.9,1.10527831]
[1738060043516,0.27208051,675.78,674.9,1.10527831]
[1738060043718,0.27208051,675.79,674.9,1.10527831]
[1738060044023,0.27208051,675.78,674.9,1.10527831]
[1738060044322,1.10720205,675.8,674.9,1.10527831]
[1738060044518,0.27207679,675.79,674.9,1.10527831]
[1738060045320,1.37927884,675.79,674.9,1.10527831]
[1738060045515,0.27207679,675.78,674.9,1.10527831]
[1738060046521,1.10720205,675.79,674.9,1.10527831]
[1738060046723,0.27207976,675.78,674.9,1.10527831]
[1738060048024,0.27207976,675.78,674.69,1.10527831]
[1738060048025,0.27207976,675.78,674.91,1.10527831]
[1738060048326,0.27207976,675.77,674.91,1.10527831]
[1738060048522,0.27207976,675.8,674.91,1.10527831]
[1738060048724,1.10720205,675.81,674.91,1.10527831]
[1738060048925,0.27207804,675.8,674.91,1.10527831]
[1738060049627,1.10720205,675.81,674.91,1.10527831]
[1738060050521,1.10720205,675.8,674.91,1.10527831]
[1738060053730,0.29588862,675.93,674.76,1.10527831]
[1738060054029,0.29588862,675.93,674.77,0.29639729]
[1738060055531,0.27203247,675.92,674.77,0.29639729]
[1738060059832,0.27203247,675.92,674.91,1.10527831]
[1738060061232,0.29588862,675.93,674.91,1.10527831]
[1738060061428,0.27206292,675.92,674.91,1.10527831]
[1738060062837,0.29588862,675.93,674.91,1.10527831]
[1738060063537,0.29588862,675.93,674.83,1.10527831]
[1738060063837,0.27210214,675.92,674.83,1.10527831]
[1738060064534,0.29588862,675.93,674.83,1.10527831]
[1738060064740,0.27210707,675.92,674.83,1.10527831]
[1738060065739,0.29589738,675.91,674.83,1.10527831]
[1738060065938,0.27210707,675.9,674.83,1.10527831]
[1738060066140,0.56800883,675.9,674.83,1.10527831]
[1738060066438,0.27210707,675.89,674.77,0.29639729]
[1738060069844,0.27211371,675.88,674.77,0.29639729]
[1738060070047,0.27211371,675.87,674.77,0.29639729]
[1738060070347,0.27211371,675.86,674.77,0.29639729]
[1738060070549,0.27211371,675.85,674.77,0.29639729]
[1738060070744,0.27211371,675.84,674.77,0.29639729]
[1738060070949,0.27211371,675.83,674.77,0.29639729]
[1738060071249,0.27211371,675.82,674.77,0.29639729]
[1738060071449,0.27211371,675.85,674.77,0.29639729]
[1738060071651,0.27211371,675.84,674.77,0.29639729]
[1738060071851,0.27211371,675.85,674.77,0.29639729]
[1738060072044,0.27211371,675.84,674.77,0.29639729]
[1738060072244,0.27211371,675.85,674.77,0.29639729]
[1738060072447,0.27211371,675.84,674.77,0.29639729]
[1738060072646,0.27211371,675.83,674.77,0.29639729]
[1738060072843,0.27211371,675.82,674.77,0.29639729]
[1738060073048,0.27211371,675.85,674.77,0.29639729]
[1738060074751,1.54591661,675.86,674.77,0.29639729]
[1738060074952,0.27211879,675.85,674.77,0.29639729]
[1738060082356,1.10720205,675.8,674.77,0.29639729]
[1738060082548,0.27211879,675.79,674.77,0.29639729]
[1738060082950,1.54612266,675.78,674.77,0.29639729]
[1738060083157,0.27211879,675.77,674.77,0.29639729]
[1738060087758,1.54612266,675.78,674.77,0.29639729]
[1738060087759,0.27211879,675.76,674.77,0.29639729]
[1738060087958,0.27211879,675.77,674.77,0.29639729]
[1738060091764,1.54612266,675.78,674.77,0.29639729]
[1738060092062,0.27217348,675.77,674.77,0.29639729]
[1738060095055,1.54612266,675.78,674.77,0.29639729]
[1738060095260,0.27216611,675.77,674.77,0.29639729]
[1738060104169,1.10720205,675.72,674.77,0.29639729]
[1738060104872,0.27215493,675.71,674.77,0.29639729]
[1738060106271,1.10720205,675.72,674.77,0.29639729]
[1738060107972,1.54612266,675.78,674.77,0.29639729]
[1738060108164,0.27215399,675.77,674.77,0.29639729]
[1738060108775,0.27214613,675.76,674.77,0.29639729]
[1738060109071,1.54612266,675.78,674.77,0.29639729]
[1738060109072,0.27214613,675.75,674.77,0.29639729]
[1738060109272,0.27214613,675.77,674.77,0.29639729]
[1738060114970,0.27214613,675.76,674.77,0.29639729]
[1738060115175,0.27214613,675.75,674.77,0.29639729]
[1738060115477,1.10720205,675.63,674.77,1.4016756]
[1738060118575,1.54599673,675.86,674.77,1.4016756]
[1738060118576,1.10720205,675.77,674.77,1.4016756]
[1738060118775,0.27211652,675.76,674.77,1.4016756]
[1738060122489,0.27211652,675.76,674.77,0.29639729]
[1738060122687,0.27211652,675.79,674.77,0.29639729]
[1738060122888,0.27211652,675.78,674.77,0.29639729]
[1738060123188,0.27211652,675.77,674.77,0.29639729]
[1738060123390,0.27211652,675.76,674.77,0.29639729]
[1738060123687,0.27211652,675.75,674.77,0.29639729]
[1738060123889,0.27211652,675.74,674.77,0.29639729]
[1738060124088,0.27211652,675.73,674.77,0.29639729]
[1738060124289,0.27211652,675.72,674.77,0.29639729]
[1738060124489,1.10720205,675.8,674.77,0.29639729]
[1738060124683,0.27211639,675.79,674.77,0.29639729]
[1738060127896,1.10720205,675.8,674.77,0.29639729]
[1738060128097,0.27211678,675.79,674.77,0.29639729]
[1738060128990,1.10720205,675.74,674.79,1.10527831]
[1738060129195,0.27211678,675.73,674.79,1.10527831]
[1738060129695,1.10720205,675.74,674.79,1.10527831]
[1738060129696,0.27212143,675.72,674.79,1.10527831]
[1738060129895,0.27212143,675.71,674.79,1.10527831]
[1738060130091,0.27212143,675.73,674.79,1.10527831]
[1738060130296,0.27212143,675.72,674.79,1.10527831]
[1738060130500,0.27212143,675.71,674.79,1.10527831]
[1738060130798,0.27212143,675.7,674.79,1.10527831]
[1738060130996,0.27212143,675.73,674.79,1.10527831]
[1738060131198,0.27212143,675.72,674.79,1.10527831]
[1738060131398,0.27212143,675.73,674.79,1.10527831]
[1738060131598,0.27212143,675.72,674.79,1.10527831]
[1738060131797,0.27212143,675.71,674.79,1.10527831]
[1738060131998,1.10720205,675.74,674.79,1.10527831]
[1738060131999,0.27212143,675.7,674.79,1.10527831]
[1738060132300,0.27212143,675.69,674.79,1.10527831]
[1738060132498,0.27212143,675.68,674.81,1.10527831]
[1738060132699,0.27212143,675.67,674.81,1.10527831]
[1738060132899,1.10720205,675.72,674.81,1.10527831]
[1738060133198,0.2721228,675.71,674.81,1.10527831]
[1738060140504,0.2721228,675.71,674.77,0.29639729]
[1738060140505,0.2721228,675.71,674.77,1.4016756]
[1738060140802,0.2721228,675.7,674.77,1.4016756]
[1738060141003,0.2721228,675.69,674.77,1.4016756]
[1738060141203,0.2721228,675.77,674.77,1.4016756]
[1738060141601,0.27212417,675.76,674.77,1.4016756]
[1738060141803,0.27212417,675.77,674.77,1.4016756]
[1738060142000,0.27212417,675.76,674.77,1.4016756]
[1738060142201,0.27212417,675.77,674.77,1.4016756]
[1738060142398,0.27212417,675.76,674.77,1.4016756]
[1738060142701,0.27212417,675.75,674.77,1.4016756]
[1738060142905,0.27212417,675.74,674.77,1.4016756]
[1738060143100,0.27212417,675.77,674.77,1.4016756]
[1738060143300,0.27212227,675.76,674.77,1.4016756]
[1738060143502,1.10720205,675.75,674.77,1.4016756]
[1738060143802,0.27212227,675.74,674.77,1.4016756]
[1738060146001,0.27212227,675.74,674.77,0.29639729]
[1738060146199,0.27212227,675.73,674.77,0.29639729]
[1738060146403,0.27212227,675.72,674.77,0.29639729]
[1738060146603,0.27212227,675.77,674.77,0.29639729]
[1738060147303,1.10720205,675.78,674.77,0.29639729]
[1738060149201,0.29590176,675.9,674.84,1.10527831]
[1738060149405,0.27206597,675.89,674.84,1.10527831]
[1738060149906,0.29590176,675.9,674.84,1.10527831]
[1738060150105,0.27206941,675.89,674.84,1.10527831]
[1738060150909,0.29590176,675.9,674.84,1.10527831]
[1738060151301,0.27207288,675.89,674.84,1.10527831]
[1738060152409,0.27207288,675.89,674.8,1.10527831]
[1738060153309,0.272071,675.88,674.8,1.10527831]
[1738060153608,0.272071,675.89,674.8,1.10527831]
[1738060153909,0.272071,675.88,674.8,1.10527831]
[1738060154108,0.272071,675.87,674.8,1.10527831]
[1738060154308,0.29590176,675.9,674.8,1.10527831]
[1738060154309,0.272071,675.89,674.8,1.10527831]
[1738060154509,0.272071,675.88,674.8,1.10527831]
[1738060154704,0.272071,675.89,674.8,1.10527831]
[1738060154911,0.29590176,675.9,674.8,1.10527831]
[1738060155303,0.29590176,675.9,674.63,1.5456534]
[1738060155304,0.27204795,675.89,674.83,1.10527831]
[1738060155507,0.27204795,675.89,674.83,1.40164924]
[1738060158313,0.27203958,675.88,674.83,1.40164924]
[1738060158505,0.27203958,675.89,674.88,1.10527831]
[1738060158708,0.27203958,675.88,674.88,1.10527831]
[1738060158912,0.27203958,675.89,674.88,1.10527831]
[1738060159110,0.27203958,675.88,674.88,1.10527831]
[1738060159307,0.27203958,675.89,674.88,1.10527831]
[1738060159506,0.27203958,675.88,674.88,1.10527831]
[1738060159711,0.27203958,675.89,674.88,1.10527831]
[1738060160011,0.27203958,675.88,674.88,1.10527831]
[1738060160212,0.27203958,675.87,674.88,1.10527831]
[1738060160407,0.27203958,675.86,674.88,1.10527831]
[1738060160613,0.27203958,675.85,674.88,1.10527831]
[1738060160806,0.27203958,675.89,674.88,1.10527831]
[1738060161011,0.27203958,675.88,674.88,1.10527831]
[1738060161212,0.27203958,675.89,674.88,1.10527831]
[1738060161511,0.27203958,675.88,674.88,1.10527831]
[1738060161716,0.27204585,675.87,674.87,1.10527831]
[1738060162007,0.27204585,675.89,674.87,1.10527831]
[1738060162213,0.27204585,675.88,674.87,1.10527831]
[1738060162409,0.27204585,675.89,674.87,1.10527831]
[1738060162609,0.27204585,675.88,674.87,1.10527831]
[1738060162813,0.29590176,675.9,674.87,1.10527831]
[1738060163014,0.27206505,675.89,674.87,1.10527831]
[1738060163214,0.29590176,675.9,674.87,1.10527831]
[1738060163514,0.27206639,675.89,674.87,1.10527831]
[1738060164413,0.27206639,675.89,674.83,0.29637093]
[1738060169016,0.29590176,675.9,674.83,0.29637093]
[1738060172720,0.27206906,675.89,674.83,0.29637093]
[1738060178617,0.29590176,675.9,674.83,0.29637093]
[1738060178824,0.27207291,675.89,674.83,0.29637093]
[1738060180528,0.27206691,675.88,674.83,0.29637093]
[1738060180823,0.27206691,675.87,674.83,0.29637093]
[1738060181023,0.27206691,675.89,674.83,0.29637093]
[1738060181218,0.27206691,675.88,674.83,0.29637093]
[1738060181417,0.27206691,675.89,674.83,0.29637093]
[1738060181720,0.27206691,675.88,674.83,0.29637093]
[1738060181926,0.27206691,675.87,674.83,0.29637093]
[1738060182121,0.27206691,675.89,674.83,0.29637093]
[1738060182324,0.27206691,675.88,674.83,0.29637093]
[1738060182622,0.27206691,675.87,674.83,0.29637093]
[1738060182825,0.27206691,675.89,674.83,0.29637093]
[1738060183126,0.27206691,675.88,674.83,0.29637093]
[1738060183426,0.27206691,675.87,674.83,0.29637093]
[1738060183629,0.27206691,675.89,674.83,0.29637093]
[1738060183828,0.29590176,675.9,674.83,0.29637093]
[1738060184128,1.10720205,675.87,674.89,1.10527831]
[1738060184328,0.27206856,675.86,674.89,1.10527831]
[1738060186929,1.10720205,675.83,674.92,1.10527831]
[1738060187124,0.27206856,675.82,674.92,1.10527831]
[1738060187329,1.10720205,675.83,674.92,1.10527831]
[1738060187623,0.27207191,675.82,674.92,1.10527831]
[1738060189632,0.27207191,675.82,674.91,1.10527831]
[1738060190731,1.10720205,675.83,674.91,1.10527831]
[1738060191032,0.2720664,675.82,674.91,1.10527831]
[1738060193635,0.2720664,675.82,674.93,1.10527831]
[1738060197230,1.10720205,675.81,674.94,1.10527831]
[1738060197433,0.2720664,675.8,674.94,1.10527831]
[1738060197634,1.10720205,675.81,674.94,1.10527831]
[1738060198234,0.27209761,675.8,674.94,1.10527831]
[1738060199539,0.27209761,675.8,674.83,0.29637093]
[1738060199837,0.27209761,675.79,674.83,0.29637093]
[1738060200032,0.27209761,675.78,674.83,0.29637093]
[1738060200336,0.27209761,675.77,674.83,0.29637093]
[1738060200533,0.27209761,675.87,674.83,0.29637093]
[1738060200736,1.54577355,675.88,674.83,0.29637093]
[1738060200737,0.27209761,675.86,674.83,0.29637093]
[1738060200932,0.27209761,675.85,674.83,0.29637093]
[1738060201137,0.27209761,675.84,674.83,0.29637093]
[1738060201337,0.27209761,675.83,674.83,0.29637093]
[1738060201533,0.27209761,675.82,674.83,0.29637093]
[1738060201738,0.27209761,675.81,674.83,0.29637093]
[1738060201938,0.27209761,675.87,674.83,0.29051419]
[1738060202138,0.27209761,675.86,674.83,0.29051419]
[1738060202439,1.10720205,675.75,674.83,0.29051419]
[1738060202640,0.27209761,675.74,674.83,0.29051419]
[1738060206241,1.37929966,675.74,674.83,0.29051419]
[1738060206539,0.27209761,675.73,674.83,0.29051419]
[1738060208643,1.10720205,675.74,674.83,0.29051419]
[1738060209133,1.10720205,675.87,674.83,0.29051419]
[1738060209338,0.2721055,675.86,674.83,0.29051419]
[1738060209634,0.27210765,675.85,674.83,0.29051419]
[1738060209934,0.27210765,675.84,674.83,0.29051419]
[1738060210138,0.27210765,675.83,674.83,0.29051419]
[1738060210341,0.27210765,675.86,674.83,0.29051419]
[1738060210534,0.27210765,675.85,674.83,0.29051419]
[1738060210739,0.27210765,675.84,674.83,0.29051419]
[1738060210935,0.27210765,675.83,674.83,0.29051419]
[1738060211135,0.27210765,675.86,674.83,0.29051419]
[1738060211441,0.27210835,675.85,674.83,0.29051419]
[1738060211640,0.27210718,675.84,674.83,0.29051419]
[1738060211840,0.27210718,675.87,674.83,0.29051419]
[1738060212041,0.27210718,675.86,674.83,0.29051419]
[1738060212341,0.27210718,675.85,674.83,0.29051419]
[1738060212535,0.27210718,675.87,674.83,0.29051419]
[1738060212738,0.27210718,675.86,674.83,0.29051419]
[1738060212937,0.27210718,675.85,674.83,0.29051419]
[1738060213142,0.27210718,675.87,674.83,0.29051419]
[1738060213339,0.27210718,675.86,674.83,0.29051419]